[Event "*** Titled Tuesday 3|2 Blitz"]
[Site "Chess.com"]
[Date "2015.04.07"]
[Round "4"]
[White "AndrewMcStone"]
[Black "ilmago"]
[Result "1/2-1/2"]
[WhiteElo "1942"]
[BlackElo "1880"]
[TimeControl "180+2"]
[EndTime "11:49:22 PDT"]
[Termination "Game drawn by repetition"]

1. d4 {[%clk 0:03:01.9]} 1... Nf6 {[%clk 0:02:59.8]} 2. c4 {[%clk 0:03:02.8]}
2... g6 {[%clk 0:03:01.2]} 3. Nc3 {[%clk 0:03:03.9]} 3... Bg7 {[%clk 0:03:02.6]}
4. e4 {[%clk 0:03:04.8]} 4... d6 {[%clk 0:03:04]} 5. Nge2 {[%clk 0:03:05.3]}
5... O-O {[%clk 0:03:05.2]} 6. Ng3 {[%clk 0:03:06.9]} 6... c5 {[%clk 0:03:05.4]}
7. d5 {[%clk 0:03:07.9]} 7... a6 {[%clk 0:03:04.9]} 8. a4 {[%clk 0:03:07.4]}
8... e6 {[%clk 0:03:05.4]} 9. Be2 {[%clk 0:03:08.3]} 9... exd5 {[%clk
0:03:06.1]} 10. cxd5 {[%clk 0:03:10.2]} 10... Re8 {[%clk 0:03:06.2]} 11. O-O
{[%clk 0:03:10.7]} 11... Nbd7 {[%clk 0:03:06.6]} 12. Bg5 {[%clk 0:03:10.4]}
12... h6 {[%clk 0:03:07.1]} 13. Be3 {[%clk 0:03:11.5]} 13... h5 {[%clk
0:03:08.3]} 14. f3 {[%clk 0:03:06.5]} 14... h4 {[%clk 0:03:04.7]} 15. Nh1 {[%clk
0:03:07.5]} 15... Ne5 {[%clk 0:03:03.4]} 16. h3 {[%clk 0:02:56.3]} 16... Nh7
{[%clk 0:02:47.4]} 17. Qd2 {[%clk 0:02:44.4]} 17... f5 {[%clk 0:02:45.1]} 18.
Nf2 {[%clk 0:02:29]} 18... Rb8 {[%clk 0:02:33]} 19. Bh6 {[%clk 0:01:53.6]} 19...
Qf6 {[%clk 0:02:24.9]} 20. Bxg7 {[%clk 0:01:32.4]} 20... Kxg7 {[%clk 0:02:24.7]}
21. exf5 {[%clk 0:01:25.3]} 21... gxf5 {[%clk 0:02:25]} 22. Rae1 {[%clk
0:01:03]} 22... Bd7 {[%clk 0:02:21.3]} 23. f4 {[%clk 0:00:32.1]} 23... Ng6
{[%clk 0:02:09.8]} 24. Bh5 {[%clk 0:00:32.8]} 24... b5 {[%clk 0:02:04.3]} 25.
axb5 {[%clk 0:00:33]} 25... axb5 {[%clk 0:02:04.1]} 26. b4 {[%clk 0:00:25.2]}
26... cxb4 {[%clk 0:01:58]} 27. Na2 {[%clk 0:00:26]} 27... b3 {[%clk 0:01:58.8]}
28. Nb4 {[%clk 0:00:25.5]} 28... b2 {[%clk 0:01:50.6]} 29. Rb1 {[%clk
0:00:23.3]} 29... Re7 {[%clk 0:01:32.5]} 30. Bxg6 {[%clk 0:00:23]} 30... Kxg6
{[%clk 0:01:29.5]} 31. Qxb2 {[%clk 0:00:24.2]} 31... Rbe8 {[%clk 0:01:24.9]} 32.
Nc6 {[%clk 0:00:20]} 32... Re3 {[%clk 0:00:55.3]} 33. Qxf6+ {[%clk 0:00:16]}
33... Nxf6 {[%clk 0:00:55.3]} 34. Rxb5 {[%clk 0:00:17.4]} 34... Rc3 {[%clk
0:00:50]} 35. Rb6 {[%clk 0:00:10.4]} 35... Nxd5 {[%clk 0:00:49.7]} 36. Ne5+
{[%clk 0:00:07.7]} 36... Rxe5 {[%clk 0:00:43.4]} 37. Rxd6+ {[%clk 0:00:07.9]}
37... Re6 {[%clk 0:00:43]} 38. Rxd5 {[%clk 0:00:08.8]} 38... Bc6 {[%clk
0:00:39.5]} 39. Rd3 {[%clk 0:00:10]} 39... Rxd3 {[%clk 0:00:36.8]} 40. Nxd3
{[%clk 0:00:11.9]} 40... Bb5 {[%clk 0:00:36.1]} 41. Ne5+ {[%clk 0:00:11.6]}
41... Kf6 {[%clk 0:00:32.5]} 42. Rb1 {[%clk 0:00:11.3]} 42... Be2 {[%clk
0:00:28.3]} 43. Rb6 {[%clk 0:00:08.2]} 43... Rxb6 {[%clk 0:00:28.3]} 44. Nd7+
{[%clk 0:00:09.3]} 44... Ke6 {[%clk 0:00:29.1]} 45. Nxb6 {[%clk 0:00:11.2]}
45... Bb5 {[%clk 0:00:29.2]} 46. Kf2 {[%clk 0:00:08]} 46... Kd6 {[%clk
0:00:30.1]} 47. Nc8+ {[%clk 0:00:07.1]} 47... Kd7 {[%clk 0:00:30.1]} 48. Nb6+
{[%clk 0:00:07.4]} 48... Kc6 {[%clk 0:00:31.3]} 49. Nc8 {[%clk 0:00:07.6]} 49...
Kd7 {[%clk 0:00:32.4]} 50. Nb6+ {[%clk 0:00:07.6]} 50... Kc6 {[%clk 0:00:32.4]}
51. Nc8 {[%clk 0:00:08.3]} 51... Kd7 {[%clk 0:00:33.5]} 1/2-1/2

[Event "*** Titled Tuesday 3|2 Blitz"]
[Site "Chess.com"]
[Date "2015.04.07"]
[Round "4"]
[White "Ar4uha"]
[Black "guillead1"]
[Result "1-0"]
[WhiteElo "2466"]
[BlackElo "2386"]
[TimeControl "180+2"]
[EndTime "11:49:25 PDT"]
[Termination "Ar4uha won by resignation"]

1. e4 {[%clk 0:03:01.9]} 1... g6 {[%clk 0:03:01]} 2. d4 {[%clk 0:03:02.1]} 2...
Bg7 {[%clk 0:03:02]} 3. Nc3 {[%clk 0:03:03.6]} 3... c6 {[%clk 0:03:03.2]} 4. Nf3
{[%clk 0:03:02.8]} 4... d5 {[%clk 0:03:04]} 5. h3 {[%clk 0:03:04.5]} 5... Nf6
{[%clk 0:03:04.3]} 6. Bd3 {[%clk 0:03:04.1]} 6... dxe4 {[%clk 0:03:04.9]} 7.
Nxe4 {[%clk 0:03:05.7]} 7... Nxe4 {[%clk 0:03:06.5]} 8. Bxe4 {[%clk 0:03:05.5]}
8... Nd7 {[%clk 0:03:08.4]} 9. c3 {[%clk 0:03:06.1]} 9... O-O {[%clk 0:03:09.1]}
10. O-O {[%clk 0:03:06.1]} 10... e5 {[%clk 0:03:10.2]} 11. dxe5 {[%clk
0:03:07.1]} 11... Nxe5 {[%clk 0:03:12.1]} 12. Nxe5 {[%clk 0:03:08.3]} 12... Bxe5
{[%clk 0:03:12.4]} 13. Bh6 {[%clk 0:03:09.1]} 13... Re8 {[%clk 0:03:10.4]} 14.
Qxd8 {[%clk 0:03:04.5]} 14... Rxd8 {[%clk 0:03:10.9]} 15. Rfd1 {[%clk
0:03:00.8]} 15... Be6 {[%clk 0:03:11.3]} 16. a3 {[%clk 0:02:52.8]} 16... Bf6
{[%clk 0:03:02.1]} 17. Be3 {[%clk 0:02:40.3]} 17... Kg7 {[%clk 0:02:53.5]} 18.
g4 {[%clk 0:02:35.8]} 18... h6 {[%clk 0:02:50.5]} 19. f4 {[%clk 0:02:35.7]}
19... Bb3 {[%clk 0:02:38.5]} 20. Rxd8 {[%clk 0:02:35.3]} 20... Rxd8 {[%clk
0:02:40.4]} 21. Kf2 {[%clk 0:02:34.9]} 21... a6 {[%clk 0:02:30.3]} 22. Kf3
{[%clk 0:02:14]} 22... g5 {[%clk 0:02:24.7]} 23. Re1 {[%clk 0:01:58]} 23... Bd5
{[%clk 0:01:59.9]} 24. Bxd5 {[%clk 0:01:55.4]} 24... Rxd5 {[%clk 0:02:01.8]} 25.
f5 {[%clk 0:01:49.4]} 25... b5 {[%clk 0:01:45.8]} 26. Rc1 {[%clk 0:01:34.4]}
26... Rd7 {[%clk 0:01:34]} 27. Rh1 {[%clk 0:01:27.9]} 27... Be5 {[%clk
0:01:15.7]} 28. h4 {[%clk 0:01:26.6]} 28... f6 {[%clk 0:01:16]} 29. hxg5 {[%clk
0:01:17.2]} 29... hxg5 {[%clk 0:01:17.9]} 30. Ke4 {[%clk 0:01:17.7]} 30... Re7
{[%clk 0:01:10.6]} 31. Kf3 {[%clk 0:01:18.6]} 31... Rd7 {[%clk 0:01:10.8]} 32.
Ke4 {[%clk 0:01:19.7]} 32... Re7 {[%clk 0:01:03]} 33. Kd3 {[%clk 0:01:18.4]}
33... Rd7+ {[%clk 0:01:03.6]} 34. Kc2 {[%clk 0:01:16.6]} 34... Rd5 {[%clk
0:00:56.8]} 35. Re1 {[%clk 0:01:14.9]} 35... c5 {[%clk 0:00:55.9]} 36. a4 {[%clk
0:01:06]} 36... Bf4 {[%clk 0:00:38.2]} 37. Bxf4 {[%clk 0:00:31.1]} 37... gxf4
{[%clk 0:00:40.1]} 38. Re4 {[%clk 0:00:27.2]} 38... Kh6 {[%clk 0:00:40.9]} 39.
Rxf4 {[%clk 0:00:28.3]} 39... Kg5 {[%clk 0:00:42.5]} 40. Re4 {[%clk 0:00:28.8]}
40... c4 {[%clk 0:00:37.3]} 41. a5 {[%clk 0:00:27.7]} 41... Rd3 {[%clk
0:00:31.2]} 42. Re6 {[%clk 0:00:28.8]} 42... Rg3 {[%clk 0:00:27.6]} 43. Rxa6
{[%clk 0:00:29.5]} 43... Rg2+ {[%clk 0:00:28.2]} 44. Kb1 {[%clk 0:00:30.1]}
44... Rxg4 {[%clk 0:00:30.1]} 45. Rb6 {[%clk 0:00:18]} 45... Kxf5 {[%clk
0:00:31.6]} 46. Rxb5+ {[%clk 0:00:19.1]} 46... Ke6 {[%clk 0:00:32.9]} 47. a6
{[%clk 0:00:11.1]} 47... Rg8 {[%clk 0:00:27.4]} 48. Rc5 {[%clk 0:00:08.6]} 48...
Ra8 {[%clk 0:00:25.6]} 49. Rxc4 {[%clk 0:00:10.1]} 49... Rxa6 {[%clk 0:00:26.8]}
50. Kc2 {[%clk 0:00:11.7]} 50... Rd6 {[%clk 0:00:27]} 51. Rd4 {[%clk 0:00:11.6]}
51... Rxd4 {[%clk 0:00:25]} 52. cxd4 {[%clk 0:00:12.7]} 52... Kd5 {[%clk
0:00:26.3]} 53. Kd3 {[%clk 0:00:12.7]} 53... f5 {[%clk 0:00:27.5]} 54. b4 {[%clk
0:00:14.3]} 54... f4 {[%clk 0:00:28.4]} 55. b5 {[%clk 0:00:15.9]} 1-0

[Event "*** Titled Tuesday 3|2 Blitz"]
[Site "Chess.com"]
[Date "2015.04.07"]
[Round "4"]
[White "brauliocuarta"]
[Black "Tilicheev_Viacheslav"]
[Result "1-0"]
[WhiteElo "2051"]
[BlackElo "2417"]
[TimeControl "180+2"]
[EndTime "11:49:51 PDT"]
[Termination "brauliocuarta won on time"]

1. d4 {[%clk 0:03:01.9]} 1... d5 {[%clk 0:02:58.2]} 2. c4 {[%clk 0:03:01.4]}
2... e5 {[%clk 0:02:57]} 3. dxe5 {[%clk 0:02:56.1]} 3... d4 {[%clk 0:02:58.9]}
4. Nf3 {[%clk 0:02:56]} 4... Nc6 {[%clk 0:03:00]} 5. a3 {[%clk 0:02:52.8]} 5...
Nge7 {[%clk 0:02:58.5]} 6. Nbd2 {[%clk 0:02:50.6]} 6... a5 {[%clk 0:02:56.6]} 7.
Ne4 {[%clk 0:02:48.2]} 7... Ng6 {[%clk 0:02:50.3]} 8. e3 {[%clk 0:02:43.9]} 8...
Bg4 {[%clk 0:02:42.7]} 9. Be2 {[%clk 0:02:38.9]} 9... Bxf3 {[%clk 0:02:28.1]}
10. gxf3 {[%clk 0:02:21.5]} 10... Ngxe5 {[%clk 0:02:30]} 11. f4 {[%clk
0:02:20.5]} 11... Ng6 {[%clk 0:02:23.7]} 12. Qb3 {[%clk 0:02:02.1]} 12... Rb8
{[%clk 0:02:04.9]} 13. Bd2 {[%clk 0:01:40.4]} 13... Be7 {[%clk 0:01:56.2]} 14.
O-O-O {[%clk 0:01:33.1]} 14... O-O {[%clk 0:01:56.6]} 15. Bc3 {[%clk 0:01:28.2]}
15... f5 {[%clk 0:01:39.3]} 16. Bxd4 {[%clk 0:01:07.8]} 16... fxe4 {[%clk
0:01:25.5]} 17. Bxg7 {[%clk 0:01:03.3]} 17... Kxg7 {[%clk 0:00:55.9]} 18. Rxd8
{[%clk 0:00:59.8]} 18... Rfxd8 {[%clk 0:00:52.1]} 19. h4 {[%clk 0:00:49.2]}
19... Bf6 {[%clk 0:00:51.7]} 20. h5 {[%clk 0:00:47]} 20... Nge7 {[%clk
0:00:52.6]} 21. c5 {[%clk 0:00:37.3]} 21... Rd5 {[%clk 0:00:51.9]} 22. Rg1+
{[%clk 0:00:25]} 22... Kf8 {[%clk 0:00:46]} 23. h6 {[%clk 0:00:21.4]} 23... Rbd8
{[%clk 0:00:42.7]} 24. Kb1 {[%clk 0:00:16.6]} 24... a4 {[%clk 0:00:25.4]} 25.
Qxa4 {[%clk 0:00:10.6]} 25... Rd2 {[%clk 0:00:25.3]} 26. Bc4 {[%clk 0:00:11.4]}
26... Rxb2+ {[%clk 0:00:25.4]} 27. Kc1 {[%clk 0:00:10.8]} 27... Rdd2 {[%clk
0:00:19.4]} 28. Rd1 {[%clk 0:00:07]} 28... Rdc2+ {[%clk 0:00:07.2]} 29. Qxc2
{[%clk 0:00:06.5]} 29... Rxc2+ {[%clk 0:00:09.1]} 30. Kxc2 {[%clk 0:00:07.3]}
30... Ke8 {[%clk 0:00:05.1]} 31. Be6 {[%clk 0:00:07.4]} 31... Nd8 {[%clk
0:00:04.7]} 32. Bh3 {[%clk 0:00:06.8]} 32... Nf7 {[%clk 0:00:03.5]} 33. Bd7+
{[%clk 0:00:06.7]} 33... Kf8 {[%clk 0:00:04.4]} 34. Be6 {[%clk 0:00:07.8]} 34...
Nxh6 {[%clk 0:00:04.9]} 35. Rd8+ {[%clk 0:00:07.1]} 35... Kg7 {[%clk 0:00:06.3]}
36. Rb8 {[%clk 0:00:08.3]} 36... Nf7 {[%clk 0:00:07.4]} 37. Rxb7 {[%clk
0:00:07.6]} 37... h5 {[%clk 0:00:09.1]} 38. Bxf7 {[%clk 0:00:07.2]} 38... Kxf7
{[%clk 0:00:10.2]} 39. a4 {[%clk 0:00:08.9]} 39... h4 {[%clk 0:00:11.8]} 40. a5
{[%clk 0:00:10.1]} 40... h3 {[%clk 0:00:12.9]} 41. a6 {[%clk 0:00:11.1]} 41...
h2 {[%clk 0:00:10.8]} 42. Rb1 {[%clk 0:00:12.6]} 42... Nc6 {[%clk 0:00:12.5]}
43. Kb3 {[%clk 0:00:12]} 43... Bh4 {[%clk 0:00:13]} 44. Rh1 {[%clk 0:00:09.3]}
44... Bxf2 {[%clk 0:00:14.1]} 45. Rxh2 {[%clk 0:00:10.3]} 45... Bxe3 {[%clk
0:00:15.6]} 46. Kc4 {[%clk 0:00:10.6]} 46... Bg1 {[%clk 0:00:07.6]} 47. Rh6
{[%clk 0:00:11.1]} 47... Na7 {[%clk 0:00:04.9]} 48. Rh7+ {[%clk 0:00:12.1]}
48... Ke6 {[%clk 0:00:04.7]} 49. Rxc7 {[%clk 0:00:13.6]} 49... e3 {[%clk
0:00:06.3]} 50. Kd3 {[%clk 0:00:12.5]} 50... Nb5 {[%clk 0:00:07.6]} 51. Rb7
{[%clk 0:00:12.5]} 51... Nd4 {[%clk 0:00:03.4]} 52. a7 {[%clk 0:00:11.7]} 52...
Nb3 {[%clk 0:00:02.9]} 53. Rxb3 {[%clk 0:00:12]} 1-0

[Event "*** Titled Tuesday 3|2 Blitz"]
[Site "Chess.com"]
[Date "2015.04.07"]
[Round "4"]
[White "megarompa"]
[Black "Dlugy"]
[Result "1/2-1/2"]
[WhiteElo "2690"]
[BlackElo "2522"]
[TimeControl "180+2"]
[EndTime "11:50:14 PDT"]
[Termination "Game drawn by agreement"]

1. d4 {[%clk 0:03:01.9]} 1... d5 {[%clk 0:03:00.9]} 2. c4 {[%clk 0:03:03.3]}
2... dxc4 {[%clk 0:03:02.2]} 3. Nf3 {[%clk 0:03:04.5]} 3... a6 {[%clk
0:03:03.1]} 4. e3 {[%clk 0:03:03.4]} 4... e6 {[%clk 0:03:04.6]} 5. Bxc4 {[%clk
0:03:04.1]} 5... c5 {[%clk 0:03:06.3]} 6. O-O {[%clk 0:03:02.9]} 6... Nf6 {[%clk
0:03:08]} 7. Nc3 {[%clk 0:02:58]} 7... b5 {[%clk 0:03:08.6]} 8. Bd3 {[%clk
0:02:56.8]} 8... cxd4 {[%clk 0:03:08]} 9. exd4 {[%clk 0:02:56]} 9... Bb7 {[%clk
0:03:09.3]} 10. Bg5 {[%clk 0:02:56.4]} 10... Be7 {[%clk 0:03:10.5]} 11. Qe2
{[%clk 0:02:53.3]} 11... Nbd7 {[%clk 0:03:10.9]} 12. a3 {[%clk 0:02:46.3]} 12...
Nb6 {[%clk 0:03:11.5]} 13. Rad1 {[%clk 0:02:40.5]} 13... O-O {[%clk 0:03:07.3]}
14. Bxf6 {[%clk 0:02:34.9]} 14... Bxf6 {[%clk 0:03:08]} 15. Be4 {[%clk
0:02:36.6]} 15... Nd5 {[%clk 0:03:03.7]} 16. Nxd5 {[%clk 0:02:24]} 16... Bxd5
{[%clk 0:03:04.4]} 17. Rc1 {[%clk 0:02:25.7]} 17... Bc4 {[%clk 0:02:59.6]} 18.
Bd3 {[%clk 0:02:19.4]} 18... Bxd3 {[%clk 0:03:00]} 19. Qxd3 {[%clk 0:02:20.1]}
19... Rc8 {[%clk 0:02:57.6]} 20. Qe4 {[%clk 0:02:21.2]} 20... Qd5 {[%clk
0:02:37.6]} 21. Qxd5 {[%clk 0:02:16.6]} 21... exd5 {[%clk 0:02:38.8]} 22. g3
{[%clk 0:02:17.2]} 22... Rfe8 {[%clk 0:02:36.5]} 23. Ne5 {[%clk 0:02:16]} 23...
Bxe5 {[%clk 0:02:16.7]} 24. dxe5 {[%clk 0:02:04.5]} 24... Kf8 {[%clk 0:02:18]}
25. f4 {[%clk 0:02:03.5]} 25... Ke7 {[%clk 0:02:19.1]} 26. Kf2 {[%clk
0:02:03.3]} 26... Rc4 {[%clk 0:02:18.5]} 27. b3 {[%clk 0:02:00.8]} 27... Rcc8
{[%clk 0:02:09.6]} 28. Ke3 {[%clk 0:01:58.2]} 28... f6 {[%clk 0:02:06.5]} 29.
Kd4 {[%clk 0:01:54.5]} 29... fxe5+ {[%clk 0:02:06]} 30. Kxe5 {[%clk 0:01:55.5]}
30... Kf8+ {[%clk 0:02:02.2]} 31. Kd4 {[%clk 0:01:48.6]} 31... Rcd8 {[%clk
0:01:58.8]} 32. Rfe1 {[%clk 0:01:49.5]} 32... Re4+ {[%clk 0:01:54]} 33. Rxe4
{[%clk 0:01:49.8]} 33... dxe4+ {[%clk 0:01:55.9]} 34. Kxe4 {[%clk 0:01:51.7]}
34... Rd2 {[%clk 0:01:57.5]} 35. Rc8+ {[%clk 0:01:50.7]} 35... Kf7 {[%clk
0:01:58.1]} 36. Rc7+ {[%clk 0:01:52.6]} 36... Kf8 {[%clk 0:01:59.2]} 37. Rc6
{[%clk 0:01:47.2]} 37... Rxh2 {[%clk 0:02:00]} 38. Rxa6 {[%clk 0:01:48.2]} 38...
Rb2 {[%clk 0:01:48.6]} 39. b4 {[%clk 0:01:48.4]} 39... h5 {[%clk 0:01:49.7]} 40.
Rb6 {[%clk 0:01:47.6]} 40... Rb3 {[%clk 0:01:50.9]} 41. Rxb5 {[%clk 0:01:49.2]}
41... Rxa3 {[%clk 0:01:52]} 42. Rxh5 {[%clk 0:01:49.9]} 42... Rxg3 {[%clk
0:01:53.2]} 43. Rb5 {[%clk 0:01:48.6]} 43... Ke7 {[%clk 0:01:53.4]} 44. Rb7+
{[%clk 0:01:49.6]} 44... Kd6 {[%clk 0:01:54.6]} 45. Rb6+ {[%clk 0:01:51.5]}
45... Kc7 {[%clk 0:01:55.8]} 46. Rb5 {[%clk 0:01:51.7]} 46... Kc6 {[%clk
0:01:57]} 47. Rc5+ {[%clk 0:01:52.9]} 47... Kd6 {[%clk 0:01:57.2]} 48. Rg5
{[%clk 0:01:52]} 48... Rb3 {[%clk 0:01:57.8]} 49. b5 {[%clk 0:01:53]} 49... Ke6
{[%clk 0:01:54.7]} 50. Rg6+ {[%clk 0:01:52]} 50... Kf7 {[%clk 0:01:55.7]} 51.
Rb6 {[%clk 0:01:53.9]} 51... Ke7 {[%clk 0:01:53.4]} 52. Kf5 {[%clk 0:01:54.4]}
52... Rb4 {[%clk 0:01:48.8]} 53. Rb7+ {[%clk 0:01:37.4]} 53... Kd8 {[%clk
0:01:40.5]} 54. Kg5 {[%clk 0:01:28.7]} 54... Kc8 {[%clk 0:01:27.1]} 55. Rb6
{[%clk 0:01:25.3]} 55... Kc7 {[%clk 0:01:27.5]} 56. Rc6+ {[%clk 0:01:26.4]}
56... Kd7 {[%clk 0:01:21.9]} 57. Rc5 {[%clk 0:01:28.3]} 57... Kd6 {[%clk
0:01:16.1]} 58. Re5 {[%clk 0:01:27.9]} 58... Rb1 {[%clk 0:01:17]} 59. Kf5 {[%clk
0:01:28.2]} 59... Rb4 {[%clk 0:01:06.8]} 60. Re6+ {[%clk 0:01:28.6]} 60... Kd7
{[%clk 0:01:08.1]} 61. Rb6 {[%clk 0:01:28.6]} 61... Kc7 {[%clk 0:01:09.1]} 62.
Rc6+ {[%clk 0:01:29.9]} 62... Kd7 {[%clk 0:01:10.1]} 63. Rc5 {[%clk 0:01:31.5]}
63... Kd6 {[%clk 0:01:11.3]} 64. Re5 {[%clk 0:01:33.4]} 64... Rb1 {[%clk
0:00:53.2]} 65. Re6+ {[%clk 0:01:31.9]} 65... Kd7 {[%clk 0:00:53.3]} 66. Re5
{[%clk 0:01:18.4]} 66... Kd6 {[%clk 0:00:54.5]} 67. Kg6 {[%clk 0:01:10.8]} 67...
Rg1+ {[%clk 0:00:46.4]} 68. Kf7 {[%clk 0:01:11.3]} 68... Rf1 {[%clk 0:00:45.4]}
69. Rf5 {[%clk 0:01:11.4]} 69... Rg1 {[%clk 0:00:43.9]} 70. b6 {[%clk
0:01:08.3]} 70... Kc6 {[%clk 0:00:41]} 71. Rb5 {[%clk 0:01:09.1]} 71... Kb7
{[%clk 0:00:38.6]} 72. f5 {[%clk 0:01:08.4]} 72... Rg5 {[%clk 0:00:37.3]} 73.
Ke6 {[%clk 0:01:05.2]} 73... g6 {[%clk 0:00:36]} 1/2-1/2

[Event "*** Titled Tuesday 3|2 Blitz"]
[Site "Chess.com"]
[Date "2015.04.07"]
[Round "4"]
[White "GasconJR"]
[Black "alturas_pacificas"]
[Result "0-1"]
[WhiteElo "2262"]
[BlackElo "2140"]
[TimeControl "180+2"]
[EndTime "11:50:17 PDT"]
[Termination "alturas_pacificas won on time"]

1. e4 {[%clk 0:03:01.7]} 1... c6 {[%clk 0:02:55.8]} 2. d4 {[%clk 0:03:01.9]}
2... d5 {[%clk 0:02:55.4]} 3. exd5 {[%clk 0:03:03.5]} 3... cxd5 {[%clk 0:02:55]}
4. Bd3 {[%clk 0:03:05.1]} 4... Nc6 {[%clk 0:02:56]} 5. c3 {[%clk 0:03:05.9]}
5... Nf6 {[%clk 0:02:57.3]} 6. Bf4 {[%clk 0:03:06.5]} 6... Bg4 {[%clk 0:02:56]}
7. Qb3 {[%clk 0:03:07.2]} 7... Qb6 {[%clk 0:02:56.4]} 8. Nd2 {[%clk 0:03:00.3]}
8... e6 {[%clk 0:02:40.5]} 9. h3 {[%clk 0:03:00.7]} 9... Bh5 {[%clk 0:02:40.6]}
10. Ngf3 {[%clk 0:03:01.4]} 10... Be7 {[%clk 0:02:19.1]} 11. Ne5 {[%clk
0:03:00.2]} 11... Nxe5 {[%clk 0:01:56.3]} 12. Bxe5 {[%clk 0:02:43]} 12... O-O
{[%clk 0:01:53.6]} 13. O-O {[%clk 0:02:19.6]} 13... Bg6 {[%clk 0:01:48.7]} 14.
Be2 {[%clk 0:02:15.3]} 14... Qxb3 {[%clk 0:01:36.6]} 15. axb3 {[%clk 0:02:15.5]}
15... a6 {[%clk 0:01:37.8]} 16. b4 {[%clk 0:02:14.1]} 16... Rfc8 {[%clk
0:01:24]} 17. Nb3 {[%clk 0:02:12.3]} 17... Nd7 {[%clk 0:01:22.5]} 18. Bg3 {[%clk
0:02:09.4]} 18... h6 {[%clk 0:01:00.5]} 19. Na5 {[%clk 0:02:02.8]} 19... Ra7
{[%clk 0:00:56.4]} 20. b5 {[%clk 0:01:38.7]} 20... Bd8 {[%clk 0:00:30.3]} 21.
bxa6 {[%clk 0:01:32.5]} 21... bxa6 {[%clk 0:00:27.3]} 22. Nb3 {[%clk 0:01:21.9]}
22... a5 {[%clk 0:00:26.2]} 23. Bb5 {[%clk 0:01:17.4]} 23... Rca8 {[%clk
0:00:23.4]} 24. Bc6 {[%clk 0:01:02.8]} 24... Rc8 {[%clk 0:00:21.3]} 25. Bxd7
{[%clk 0:01:03.2]} 25... Rxd7 {[%clk 0:00:21.8]} 26. Nxa5 {[%clk 0:00:57.7]}
26... Ra8 {[%clk 0:00:20]} 27. Nc6 {[%clk 0:00:52.8]} 27... Rxa1 {[%clk
0:00:20.2]} 28. Rxa1 {[%clk 0:00:52.9]} 28... Bf6 {[%clk 0:00:21.6]} 29. Ne5
{[%clk 0:00:45.2]} 29... Bxe5 {[%clk 0:00:20.9]} 30. Bxe5 {[%clk 0:00:45.8]}
30... Rb7 {[%clk 0:00:21.5]} 31. b4 {[%clk 0:00:44.6]} 31... Bd3 {[%clk
0:00:22.5]} 32. Ra8+ {[%clk 0:00:41.8]} 32... Kh7 {[%clk 0:00:23]} 33. Rc8
{[%clk 0:00:39.9]} 33... Kg6 {[%clk 0:00:21.1]} 34. Rc6 {[%clk 0:00:36.7]} 34...
Bc4 {[%clk 0:00:21.2]} 35. g4 {[%clk 0:00:35]} 35... Bd3 {[%clk 0:00:18.2]} 36.
Kg2 {[%clk 0:00:35.8]} 36... f6 {[%clk 0:00:18.6]} 37. Bf4 {[%clk 0:00:13.3]}
37... Kf7 {[%clk 0:00:19.4]} 38. Kg3 {[%clk 0:00:14]} 38... Be2 {[%clk
0:00:19.6]} 39. Be3 {[%clk 0:00:14.8]} 39... Bd3 {[%clk 0:00:20.9]} 40. Bd2
{[%clk 0:00:15.8]} 40... Bc4 {[%clk 0:00:22.1]} 41. f4 {[%clk 0:00:16.7]} 41...
Bd3 {[%clk 0:00:23.4]} 42. Rc5 {[%clk 0:00:16.1]} 42... Bc4 {[%clk 0:00:24.5]}
43. f5 {[%clk 0:00:17.1]} 43... exf5 {[%clk 0:00:24.4]} 44. gxf5 {[%clk
0:00:18.1]} 44... h5 {[%clk 0:00:22.8]} 45. Bf4 {[%clk 0:00:17.9]} 45... g6
{[%clk 0:00:23.9]} 46. Bc7 {[%clk 0:00:17.8]} 46... gxf5 {[%clk 0:00:23.6]} 47.
Kf4 {[%clk 0:00:18.9]} 47... Ke6 {[%clk 0:00:24.1]} 48. Bd8 {[%clk 0:00:17.2]}
48... Rd7 {[%clk 0:00:18.5]} 49. Ba5 {[%clk 0:00:17.6]} 49... Rg7 {[%clk
0:00:14.8]} 50. Rc6+ {[%clk 0:00:16.5]} 50... Ke7 {[%clk 0:00:13.7]} 51. Rc7+
{[%clk 0:00:13.8]} 51... Kf8 {[%clk 0:00:15.1]} 52. Rxg7 {[%clk 0:00:05.9]}
52... Kxg7 {[%clk 0:00:16]} 53. Kxf5 {[%clk 0:00:07]} 53... Kf7 {[%clk
0:00:16.9]} 54. Kf4 {[%clk 0:00:03.7]} 54... Ke6 {[%clk 0:00:17.4]} 55. Bd8
{[%clk 0:00:05.2]} 55... Bb5 {[%clk 0:00:17.5]} 56. h4 {[%clk 0:00:05.8]} 56...
Bc4 {[%clk 0:00:18.8]} 57. Bc7 {[%clk 0:00:07]} 57... Bb5 {[%clk 0:00:19.9]} 58.
Ke3 {[%clk 0:00:08.3]} 58... Kf5 {[%clk 0:00:20.5]} 59. Bg3 {[%clk 0:00:07.7]}
59... Kg4 {[%clk 0:00:21.5]} 60. Bf2 {[%clk 0:00:07.6]} 60... f5 {[%clk
0:00:23.1]} 61. Kd2 {[%clk 0:00:07.9]} 61... f4 {[%clk 0:00:24.2]} 62. Ke1
{[%clk 0:00:09.1]} 62... Kf3 {[%clk 0:00:25.1]} 63. Bg1 {[%clk 0:00:09]} 63...
Kg3 {[%clk 0:00:25.9]} 64. Bf2+ {[%clk 0:00:10.2]} 64... Kg2 {[%clk 0:00:27.5]}
0-1